bitfinex/quotes_ETHUSD_20220119
["timestamp","ask_amount","ask_price","bid_price","bid_amount"]
[1642593674258,0.0022737,3119.7,3119.5,0.80162]
[1642593674459,0.00170527,3119.6,3119.5,4.71528124]
[1642593674757,0.00170527,3119.6,3119.5,5.01528124]
[1642593675363,0.00170527,3119.6,3119.5,6.05327013]
[1642593675562,0.00170527,3119.6,3119.5,6.09815881]
[1642593676260,0.00170527,3119.6,3119.5,2.99815881]
[1642593676666,0.00170527,3119.6,3119.5,3.04304749]
[1642593677710,0.00170527,3119.6,3119.5,3.05500873]
[1642593678709,0.00170527,3119.6,3119.5,3.06696997]
[1642593680311,0.00097811,3120.0,3119.6,5.4]
[1642593680511,0.00097811,3120.0,3119.8,0.3]
[1642593680755,0.1282,3120.6,3119.8,2.8]
[1642593680955,0.1282,3120.6,3119.9,2.59487476]
[1642593681157,0.00284212,3120.4,3119.9,2.59487476]
[1642593681355,0.128,3120.3,3120.0,4.11722976]
[1642593681557,0.0022737,3120.3,3120.1,0.3]
[1642593681756,0.00170527,3120.2,3120.1,0.3]
[1642593681962,0.00170527,3120.2,3120.1,2.85203239]
[1642593682559,0.128,3120.9,3120.3,0.80144]
[1642593682760,0.128,3121.1,3120.4,2.59832356]
[1642593682959,0.00341055,3120.8,3120.7,1.16754459]
[1642593685414,0.00341055,3120.8,3120.7,3.68389786]
[1642593685813,0.00341055,3120.8,3120.7,1.16754459]
[1642593686214,0.128,3121.2,3120.7,1.46754459]
[1642593686414,0.128,3121.3,3120.8,0.80133]
[1642593686618,0.00170527,3121.1,3120.9,2.67311472]
[1642593686815,0.00170527,3121.1,3120.7,3.07020459]
[1642593687015,0.00113684,3121.0,3120.7,3.07020459]
[1642593687417,0.00284211,3121.3,3120.9,1.60266]
[1642593687617,0.00284211,3121.3,3121.0,2.40406]
[1642593687816,0.462,3121.4,3121.0,2.40406]
[1642593687817,0.00227369,3121.2,3121.0,2.40406]
[1642593688120,0.80426211,3121.3,3121.0,0.80136]
[1642593688360,0.93226211,3121.3,3121.0,0.80136]
[1642593688560,0.00227369,3121.2,3121.0,0.80136]
[1642593688760,0.128,3121.1,3120.9,1.60266]
[1642593688960,0.128,3121.1,3121.0,0.01196123]
[1642593689459,0.128,3121.3,3121.0,0.01196123]
[1642593689659,0.80148,3121.1,3121.0,0.01196123]
[1642593690961,0.80148,3121.1,3121.0,0.05684991]
[1642593691366,0.80426211,3121.3,3121.0,1.65966991]
[1642593691569,0.00284211,3121.3,3121.0,2.46107991]
[1642593691769,0.00227369,3121.2,3121.0,2.46107991]
[1642593692027,0.00227369,3121.2,3121.0,2.50596859]
[1642593692217,0.00170527,3121.1,3121.0,2.50596859]
[1642593692818,0.00170527,3121.1,3121.0,2.00455859]
[1642593693218,0.00170527,3121.1,3121.0,2.01651982]
[1642593693619,0.00170527,3121.1,3121.0,0.41369982]
[1642593693818,0.00170527,3121.1,3121.0,0.11369982]
[1642593694219,0.00170527,3121.1,3121.0,0.1585885]
[1642593695220,0.00170527,3121.1,3121.0,0.20347718]
[1642593696861,3.35170527,3121.1,3121.0,0.20347718]
[1642593697569,0.00170527,3121.1,3121.0,0.20347718]
[1642593698364,0.41881659,3121.4,3121.0,1.80615718]
[1642593698563,0.41881659,3121.4,3121.1,0.80136]
[1642593698764,0.00113684,3121.3,3121.2,0.80135]
[1642593698967,0.26995343,3121.4,3121.2,0.80135]
[1642593700814,1.87283343,3121.4,3121.2,0.80135]
[1642593701015,0.128,3121.3,3121.2,0.80135]
[1642593702319,0.1248,3121.3,3121.2,0.80135]
[1642593702519,0.1248,3121.3,3121.1,0.00248337]
[1642593702826,0.1248,3121.3,3121.1,0.00168337]
[1642593702827,7.5016,3121.2,3121.1,0.00168337]
[1642593703020,6.7,3121.1,3121.0,0.20347718]
[1642593703265,7.29,3121.1,3121.0,0.20347718]
[1642593703559,8.29,3121.1,3121.0,0.20347718]
[1642593703759,8.29,3121.1,3121.0,0.20430497]
[1642593704764,8.29,3121.1,3121.0,0.20513276]
[1642593705266,7.29,3121.1,3121.0,0.20513276]
[1642593705469,8.29,3121.1,3121.0,0.20513276]
[1642593705765,7.29,3121.1,3121.0,0.20596055]
[1642593706364,8.29,3121.1,3121.0,0.20596055]
[1642593707024,8.29,3121.1,3121.0,0.20678834]
[1642593707815,8.29,3121.1,3121.0,0.20761613]
[1642593709315,8.45067,3121.1,3121.0,0.20761613]
[1642593709915,8.45067,3121.1,3121.0,0.20844392]
[1642593710116,8.45067,3121.1,3121.0,0.20761613]
[1642593711166,8.29,3121.1,3121.0,0.20761613]
[1642593711366,7.29,3121.1,3121.0,0.20761613]
[1642593711565,7.162,3121.1,3121.0,0.20761613]
[1642593711969,7.162,3121.1,3121.0,0.20844392]
[1642593712169,7.162,3121.1,3121.0,0.20761613]
[1642593712368,0.462,3121.1,3121.0,0.20761613]
[1642593713572,6.212,3121.1,3121.0,0.20761613]
[1642593714817,7.512,3121.1,3121.0,0.20761613]
[1642593715017,6.212,3121.1,3121.0,0.20761613]
[1642593715217,7.512,3121.1,3121.0,0.20844392]
[1642593715416,7.512,3121.1,3121.0,0.20761613]
[1642593715618,10.08476859,3121.1,3121.0,0.20761613]
[1642593715820,7.64,3121.1,3121.0,0.20761613]
[1642593716415,7.63917221,3121.1,3121.0,0.20761613]
[1642593716622,9.9559408,3121.1,3121.0,0.20761613]
[1642593716817,7.51117221,3121.1,3121.0,0.20761613]
[1642593717018,9.9559408,3121.1,3121.0,0.20761613]
[1642593717423,7.51117221,3121.1,3121.0,0.20761613]
[1642593717621,9.95259082,3121.1,3121.0,0.20761613]
[1642593717923,7.51117221,3121.1,3121.0,0.15742887]
[1642593719570,7.49921099,3121.1,3121.0,0.15742887]
[1642593719770,7.65988099,3121.1,3121.0,0.15742887]
[1642593721168,1.90988099,3121.1,3121.0,0.15742887]
[1642593722029,1.74921099,3121.1,3121.0,0.15742887]
[1642593722427,4.69921099,3121.1,3121.0,0.15742887]
[1642593723632,7.95890245,3121.1,3121.0,0.15742887]
[1642593724429,26.74890245,3121.1,3121.0,0.15742887]
[1642593724630,27.32807262,3121.1,3121.0,0.15742887]
[1642593724830,23.78117017,3121.1,3121.0,0.15742887]
[1642593725033,5.30068472,3121.1,3121.0,0.15742887]
[1642593725430,4.72151455,3121.1,3121.0,0.15742887]
[1642593725863,5.02151455,3121.1,3121.0,0.15742887]
[1642593726963,4.72151455,3121.1,3121.0,0.15742887]
[1642593727366,0.462,3121.1,3121.0,0.15742887]
[1642593727567,2.90763698,3121.1,3121.0,0.15742887]
[1642593727765,0.462,3121.1,3121.0,0.15742887]
[1642593729366,0.462,3121.1,3121.0,0.28542887]
[1642593729624,4.49791455,3121.8,3121.0,1.88802887]
[1642593729625,2.44563698,3121.6,3121.0,1.88802887]
[1642593729819,2.44563698,3121.6,3121.0,4.48745958]
[1642593730022,2.44563698,3121.6,3121.1,0.00113684]
[1642593730226,1.0022737,3121.7,3121.1,0.00113684]
[1642593730227,2.44563698,3121.5,3121.1,0.00113684]
[1642593730424,2.44563698,3121.6,3121.1,0.00113684]
[1642593730626,2.44563698,3121.5,3121.1,0.80248684]
[1642593730826,2.44677383,3121.5,3121.1,2.40513684]
[1642593731026,2.44677383,3121.5,3121.1,0.80248684]
[1642593731027,2.44563698,3121.4,3121.1,0.80248684]
[1642593731432,2.39563698,3121.4,3121.1,0.80248684]
[1642593732027,1.26342,3121.4,3121.1,0.80248684]
[1642593732228,1.39142,3121.4,3121.1,0.80248684]
[1642593732826,1.26342,3121.4,3121.1,0.80248684]
[1642593733666,1.26342,3121.4,3121.1,1.60387684]
[1642593734069,0.462,3121.4,3121.1,1.60387684]
[1642593735367,1.2634,3121.4,3121.1,1.60387684]
[1642593736174,1.2634,3121.4,3121.1,0.80248684]
[1642593736371,0.8014,3121.4,3121.1,0.80248684]
[1642593737419,0.80057221,3121.4,3121.1,0.80248684]
[1642593738020,0.80057221,3121.4,3121.1,1.60387684]
[1642593738420,0.00113685,3121.5,3121.1,1.60387684]
[1642593739722,0.00113685,3121.5,3121.1,4.19768495]
[1642593739922,0.00113685,3121.5,3121.1,1.60387684]
[1642593740523,1.38424817,3121.7,3121.1,4.15787872]
[1642593740764,1.38424817,3121.7,3121.2,4.12108173]
[1642593740965,1.38424817,3121.7,3121.3,0.80131]
[1642593741165,1.38424817,3121.7,3121.3,0.80244685]
[1642593741166,0.38424817,3121.7,3121.3,0.80244685]
[1642593741365,1.38424817,3121.7,3121.3,0.80244685]
[1642593741566,0.80132,3121.6,3121.3,0.00113685]
[1642593744376,0.80132,3121.6,3121.3,4.16540305]
[1642593744612,1.38424817,3121.7,3121.3,1.60376685]
[1642593744814,1.0,3121.7,3121.3,1.60376685]
[1642593745014,1.26328,3121.8,3121.3,1.60376685]
[1642593745212,0.462,3121.8,3121.3,4.11064915]
[1642593745413,0.462,3121.8,3121.6,1.44562623]
[1642593745414,0.00113685,3121.7,3121.6,1.44562623]
[1642593745612,0.00113685,3121.7,3121.6,3.94161215]
[1642593746922,5.0887245,3122.2,3121.6,3.94161215]
[1642593747117,0.9781245,3122.2,3121.7,1.60216]
[1642593747317,0.00227369,3122.1,3121.8,2.50609169]
[1642593747716,0.00170527,3122.0,3121.7,1.60216]
[1642593748119,0.00113684,3121.9,3121.7,1.60216]
[1642593749575,0.00113684,3121.9,3121.8,0.80109]
[1642593751475,0.00113684,3121.9,3121.8,3.30214502]
[1642593751673,0.00113684,3121.9,3121.8,0.80109]
[1642593753223,0.92926134,3122.2,3121.8,0.80109]
[1642593753424,0.92926134,3122.2,3121.9,2.40308]
[1642593753625,0.00113685,3122.1,3121.9,2.40308]
[1642593754024,0.00113685,3122.1,3122.0,2.68672672]
[1642593754226,0.00113685,3122.1,3121.9,2.40308]
[1642593755426,0.92926134,3122.2,3121.9,2.40308]
[1642593755763,0.92926134,3122.2,3122.0,0.80096]
[1642593755764,0.83039819,3122.2,3122.0,0.80096]
[1642593756163,0.83039819,3122.2,3122.1,2.56559648]
[1642593756566,1.5803967,3122.5,3122.1,5.76933648]
[1642593756966,0.00170527,3122.4,3122.2,1.60185]
[1642593757374,0.00113685,3122.3,3122.1,2.4028]
[1642593757774,0.00113685,3122.3,3122.2,2.56087597]
[1642593757972,0.00113685,3122.3,3122.1,2.4028]
[1642593758372,0.00030906,3122.3,3122.1,2.4028]
[1642593759716,0.80145906,3122.3,3122.1,2.4028]
[1642593759920,0.00030906,3122.3,3122.1,2.4028]
[1642593760516,0.00030906,3122.3,3122.1,4.91540448]
[1642593761118,0.00030906,3122.3,3122.1,2.4028]
[1642593761519,1.57404312,3122.5,3122.1,2.4028]
[1642593761721,1.57404312,3122.5,3122.1,4.93132585]
[1642593762922,1.57404312,3122.5,3122.2,0.801]
[1642593763122,1.57404312,3122.5,3122.2,1.60202]
[1642593763562,1.57404312,3122.5,3122.2,0.80102]
[1642593764362,1.57404312,3122.5,3122.2,3.29994951]
[1642593764562,1.57404312,3122.5,3122.2,0.80102]
[1642593764762,1.57404312,3122.5,3122.2,3.29471077]
[1642593764962,1.57404312,3122.5,3122.2,0.80102]
[1642593766163,1.57404312,3122.5,3122.3,2.48296414]
[1642593766567,1.57404312,3122.5,3122.2,3.32815825]
[1642593767215,1.57404312,3122.5,3122.2,4.12914825]
[1642593767819,1.57404312,3122.5,3122.2,0.80102]
[1642593768016,1.57404312,3122.5,3122.2,3.27803073]
[1642593768215,1.57404312,3122.5,3122.2,3.28332103]
[1642593768417,1.57404312,3122.5,3122.2,0.80102]
[1642593769015,1.57404312,3122.5,3122.3,2.56924064]
[1642593769220,1.57404312,3122.5,3122.3,2.69724064]
[1642593769416,1.57404312,3122.5,3122.3,2.56924064]
[1642593769616,1.57404312,3122.5,3122.2,0.92902]
[1642593769818,1.55588399,3122.5,3122.2,0.92902]
[1642593770015,1.55588399,3122.5,3122.2,0.80102]
[1642593771064,1.55588399,3122.5,3122.2,0.800006]
[1642593772071,1.55588399,3122.5,3122.2,1.600986]
[1642593772471,1.55588399,3122.5,3122.2,4.16481642]
[1642593772671,1.55588399,3122.5,3122.2,4.10064532]
[1642593772871,1.55588399,3122.5,3122.2,1.600986]
[1642593773076,1.55588399,3122.5,3122.2,0.800006]
[1642593774519,1.55588399,3122.5,3122.2,3.30140959]
[1642593774713,1.55588399,3122.5,3122.2,0.800006]
[1642593776519,2.35698399,3122.5,3122.2,0.800006]
[1642593776718,1.55588399,3122.5,3122.2,0.800006]
[1642593777519,2.35697399,3122.5,3122.2,0.800006]
[1642593778792,1.55588399,3122.5,3122.2,0.800006]
[1642593779390,1.5550562,3122.5,3122.2,0.800006]
[1642593781893,2.3561662,3122.5,3122.2,0.800006]
[1642593782127,0.128,3122.4,3121.8,0.128]
[1642593782329,2.19255,3122.4,3121.8,0.128]
[1642593782524,4.62419684,3122.4,3121.9,0.0022737]
[1642593782725,3.18058878,3122.4,3121.9,0.0022737]
[1642593783124,0.80128,3122.3,3121.9,0.0022737]
[1642593783428,0.59,3122.2,3121.9,0.0022737]
[1642593783624,0.462,3122.2,3121.9,0.0022737]
[1642593784225,0.80119,3122.1,3121.9,0.0022737]
[1642593784424,3.362,3122.0,3121.9,0.0022737]
[1642593784825,0.462,3122.0,3121.9,0.0022737]
[1642593785628,0.362,3122.0,3121.9,0.0022737]
[1642593785884,7.19,3122.0,3121.9,0.0022737]
[1642593786086,10.63360806,3122.0,3121.9,0.0022737]
[1642593786280,0.80224,3121.8,3121.2,0.00625266]
[1642593786483,0.59,3121.7,3121.2,1.46035451]
[1642593786682,0.462,3121.7,3121.2,2.26172451]
[1642593786882,0.462,3121.7,3121.3,0.00568424]
[1642593787282,0.80132,3121.6,3121.3,0.00568424]
[1642593787484,0.462,3121.5,3121.3,0.00568424]
[1642593787781,0.462,3121.5,3121.3,1.60824424]
[1642593788180,0.462,3121.5,3121.4,0.00511581]
[1642593788981,0.462,3121.5,3121.3,0.00568424]
[1642593789381,1.26337,3121.5,3121.3,0.00568424]
[1642593790126,0.462,3121.5,3121.2,0.00625266]
[1642593790524,0.462,3121.5,3121.2,0.80763266]
[1642593790925,0.462,3121.5,3121.3,0.00568424]
[1642593791524,0.43679849,3121.5,3121.3,0.00568424]
[1642593792727,0.80137,3121.4,3121.3,0.00568424]
[1642593793127,0.43679849,3121.5,3121.3,0.00568424]
[1642593793877,0.128,3121.7,3121.3,0.00568424]
[1642593794469,0.428,3121.7,3121.3,0.00568424]
[1642593795069,1.22932,3121.7,3121.3,0.00568424]
[1642593795370,0.428,3121.7,3121.3,0.00568424]
[1642593795570,0.128,3121.7,3121.3,0.00568424]
[1642593795771,0.0008,3121.8,3121.3,1.33961684]
[1642593795969,0.0008,3121.8,3121.3,2.87333737]
[1642593796174,0.0008,3121.8,3121.4,0.00511581]
[1642593796469,0.0008,3121.8,3121.4,0.80628581]
[1642593796870,0.0008,3121.8,3121.5,1.60695739]
[1642593797337,0.0008,3121.8,3121.6,0.00397897]
[1642593797734,0.0008,3121.8,3121.6,0.80510897]
[1642593798135,0.0008,3121.8,3121.7,0.00341054]
[1642593800037,0.0008,3121.8,3121.6,0.00397897]
[1642593800536,0.88997221,3122.2,3121.6,0.00397897]
[1642593800769,0.8012624,3121.9,3121.6,0.00397897]
[1642593801170,1.6025324,3121.9,3121.6,0.00397897]
[1642593801973,0.128,3121.8,3121.6,0.00397897]
[1642593802181,2.2910333,3121.8,3121.6,0.00397897]
[1642593802378,1.69131,3121.8,3121.6,0.00397897]
[1642593802577,1.69131,3121.8,3121.3,0.00568424]
[1642593803677,0.75642532,3121.7,3121.3,0.00568424]
[1642593803883,0.59,3121.6,3121.3,0.00568424]
[1642593804078,0.462,3121.6,3121.3,0.00568424]
[1642593804279,0.462,3121.6,3121.3,0.80696424]
[1642593804525,0.462,3121.6,3121.3,0.00568424]
[1642593804719,0.462,3121.6,3121.4,0.00511581]
[1642593804919,0.462,3121.6,3121.3,0.00568424]
[1642593806319,1.26332,3121.6,3121.3,0.00568424]
[1642593806526,0.462,3121.6,3121.3,0.00568424]
[1642593806720,0.462,3121.6,3121.1,0.00682108]
[1642593807325,0.462,3121.6,3121.1,0.13482108]
[1642593807526,0.128,3122.0,3121.2,0.80127]
[1642593807726,4.1859,3122.3,3121.3,5.53440016]
[1642593807926,4.1859,3122.3,3121.4,2.72479028]
[1642593807927,4.0579,3122.3,3121.4,2.72479028]
[1642593808128,4.0579,3122.3,3121.4,2.72990609]
[1642593808367,4.0579,3122.3,3121.3,2.80960988]
[1642593808368,4.0579,3122.3,3121.5,0.00454739]
[1642593808767,4.0579,3122.3,3121.4,0.00511581]
[1642593808768,0.80117,3122.2,3121.4,0.00511581]
[1642593809173,1.10117,3122.2,3121.4,0.00511581]
[1642593809371,1.10117,3122.2,3121.4,0.80622581]
[1642593809569,1.10117,3122.2,3121.5,0.80109]
[1642593809769,1.10117,3122.2,3121.5,0.80563739]
[1642593809970,1.10117,3122.2,3121.6,0.00397897]
[1642593810670,1.10117,3122.2,3121.5,0.00454739]
[1642593811271,1.10117,3122.2,3121.4,0.00511581]
[1642593811472,1.10117,3122.2,3121.6,0.80118]
[1642593811473,0.80117,3122.2,3121.6,0.80118]
[1642593811878,0.80117,3122.2,3121.7,0.00341054]
[1642593815127,0.80117,3122.2,3121.6,0.00397897]
[1642593815872,3.3328014,3122.4,3121.6,0.00397897]
[1642593815873,0.92912,3122.4,3121.6,0.00397897]
[1642593816074,1.22912,3122.4,3121.6,0.00397897]
[1642593816474,1.22912,3122.4,3121.8,1.22217298]
[1642593818083,1.22912,3122.4,3121.8,3.76323632]
[1642593818284,1.22912,3122.4,3121.8,1.22217298]
[1642593818484,0.80118,3122.2,3121.8,1.22217298]
[1642593819088,0.80118,3122.2,3121.5,2.6752432]
[1642593819089,2.84227988,3122.1,3121.5,0.00454739]
[1642593819394,2.44132649,3122.0,3121.5,0.00454739]
[1642593819620,1.391389,3121.9,3121.5,0.00454739]
[1642593819818,2.192669,3121.9,3121.1,0.00682108]
[1642593820124,0.59,3121.9,3121.1,0.00682108]
[1642593820318,0.462,3121.9,3121.1,0.00682108]
[1642593820723,3.7918,3122.4,3121.4,0.01269416]
[1642593820921,3.99638269,3122.5,3122.1,0.01215484]
[1642593820922,1.5550562,3122.5,3122.1,0.01215484]
[1642593821323,1.5550562,3122.5,3122.2,0.1281]
[1642593821521,1.55422841,3122.5,3122.2,0.92895]
[1642593821719,1.55422841,3122.5,3122.3,1.13713013]
[1642593823371,0.128,3123.0,3122.4,1.60165]
[1642593823574,2.44132649,3123.0,3122.4,1.60165]
[1642593823771,0.00341054,3122.9,3122.4,1.60165]
[1642593824171,0.00284211,3122.8,3122.5,0.80083]
[1642593824371,0.00284211,3122.8,3122.7,1.28627588]
[1642593824576,2.56932649,3123.2,3122.7,1.28627588]
[1642593824775,2.55736527,3123.2,3122.7,1.28627588]
[1642593824976,0.00341054,3122.9,3122.7,1.28627588]
[1642593825273,0.11603878,3123.2,3122.7,2.08709588]
[1642593825274,0.00284211,3122.8,3122.7,2.08709588]
[1642593825473,0.00284211,3122.8,3122.7,1.28627588]
[1642593825873,0.00284211,3122.8,3122.6,1.60163]
[1642593826272,0.00227369,3122.7,3122.6,1.60163]
[1642593826874,0.00227369,3122.7,3122.6,2.73216814]
[1642593833279,0.00227369,3122.7,3122.6,1.60163]
[1642593833477,0.00227369,3122.7,3122.5,0.80081]
[1642593833681,0.00227369,3122.7,3121.9,2.80308]
[1642593833682,0.128,3122.6,3121.8,4.0578]
[1642593833877,0.128,3122.6,3121.8,3.9298]
[1642593833878,0.21957512,3122.6,3121.8,3.9298]
[1642593834078,1.93674359,3122.3,3121.8,3.9298]
[1642593834277,1.93674359,3122.3,3121.5,0.00454739]
[1642593834278,0.128,3122.3,3121.5,0.00454739]
[1642593834524,0.128,3122.4,3121.5,0.00454739]
[1642593834718,0.00113684,3122.5,3121.8,1.60207]
[1642593834924,0.128,3122.4,3121.8,1.60207]
[1642593835520,2.31288612,3122.2,3121.8,1.60207]
[1642593836520,0.92913,3122.4,3121.8,1.60207]
[1642593836724,0.00113684,3122.5,3121.8,1.60207]
[1642593836924,0.00113684,3122.5,3121.9,0.128]
[1642593837128,0.00113684,3122.5,3121.9,0.92895]
[1642593837326,0.00113684,3122.5,3122.0,0.00170527]
[1642593838571,0.00113684,3122.5,3122.0,0.80265527]
[1642593838973,0.00113684,3122.5,3122.1,0.00113685]
[1642593843924,0.00113684,3122.5,3122.0,0.50208685]
[1642593844124,0.00113684,3122.5,3122.1,0.128]
[1642593844324,0.00170527,3122.4,3122.0,0.63008685]
[1642593844525,0.00170527,3122.4,3122.1,0.80103]
[1642593844722,4.3358,3122.9,3122.1,0.80103]
[1642593844723,0.00113685,3122.3,3122.1,0.80103]
[1642593845125,0.00397896,3122.8,3122.2,0.80092]
[1642593845527,4.3358,3122.9,3122.2,0.80092]
[1642593845528,0.00341054,3122.7,3122.2,0.80092]
[1642593845768,4.32724932,3122.9,3122.2,0.80092]
[1642593845970,4.32724932,3122.9,3122.3,0.00227369]
[1642593846372,0.128,3123.0,3122.4,2.7742869]
[1642593846581,3.25951455,3123.4,3122.4,2.7742869]
[1642593846582,2.43985724,3123.5,3122.6,6.7]
[1642593846775,3.25951455,3123.8,3123.0,6.7]
[1642593846974,2.43951402,3124.1,3123.6,0.01217317]
[1642593847182,1.2876,3124.7,3123.7,0.128]
[1642593847183,2.43951402,3124.5,3123.7,0.128]
[1642593847378,3.59911402,3124.7,3123.8,3.45568944]
[1642593847576,3.27022569,3124.9,3123.8,3.45568944]
[1642593847577,0.00909478,3124.3,3123.9,2.67333446]
[1642593847780,0.00909478,3124.3,3124.0,0.59]
[1642593847982,4.1439,3125.3,3124.1,6.712]
[1642593847983,0.00852635,3124.2,3124.1,6.712]
[1642593848179,0.00852635,3124.2,3124.1,12.612]
[1642593848577,4.267,3125.3,3125.2,1.54244466]
[1642593848781,0.80038,3125.7,3125.2,1.54244466]
[1642593848782,0.1215,3125.8,3125.2,4.21577912]
[1642593848982,0.00160677,3125.9,3125.3,1.38997]
[1642593849278,0.00909478,3125.8,3125.3,2.35917]
[1642593849725,0.00160677,3125.9,3125.3,2.35917]
[1642593849726,0.00852635,3125.7,3125.3,2.35917]
[1642593849925,0.08803312,3126.0,3125.4,3.55]
[1642593850127,0.08803312,3126.0,3125.4,3.55170527]
[1642593850324,0.0897384,3126.0,3125.5,0.00113684]
[1642593850532,0.00170528,3126.0,3125.5,0.00113684]
[1642593850728,0.00170528,3126.0,3125.5,1.60112684]
[1642593850928,0.00170528,3126.0,3125.5,4.1744613]
[1642593851135,0.00170528,3126.0,3125.6,0.462]
[1642593851329,0.13819997,3126.8,3125.8,4.6]
[1642593851330,0.08990525,3126.8,3125.8,4.6]
[1642593851527,0.08990525,3126.8,3125.9,0.80007]
[1642593851729,0.00397896,3126.7,3125.7,0.5899]
[1642593852134,0.00511582,3126.6,3125.7,0.462]
[1642593852533,0.00511582,3126.6,3125.5,0.1279]
[1642593852534,2.43951402,3126.3,3125.8,3.5]
[1642593852734,1.65269426,3126.4,3125.3,3.13533446]
[1642593852933,0.00284212,3126.2,3125.4,0.8001]
[1642593853138,0.00341055,3126.3,3125.4,0.80180527]
[1642593853378,0.0022737,3126.1,3125.4,0.80180527]
[1642593853577,0.00284212,3126.2,3125.4,0.80180527]
[1642593853778,0.00170528,3126.0,3125.4,0.80180527]
[1642593853979,0.0022737,3126.1,3125.6,0.8001]
[1642593854180,0.00113685,3125.9,3125.8,0.29245862]
[1642593854385,13.09621072,3127.2,3125.8,0.29245862]
[1642593854386,0.37973038,3127.3,3126.0,6.7]
[1642593854585,14.62,3128.2,3127.2,0.01287584]
[1642593854586,2.37503523,3127.8,3127.2,0.01287584]
[1642593854787,0.007,3128.4,3127.2,0.01287584]
[1642593854788,2.37503523,3127.5,3127.3,0.45646998]
[1642593854984,0.007,3128.4,3127.5,1.12148477]
[1642593855188,0.007,3128.4,3127.4,2.84526426]
[1642593855189,0.957,3129.4,3128.1,0.01253734]
[1642593855583,0.01591586,3128.7,3128.1,0.01253734]
[1642593855788,1.77531704,3128.7,3128.0,0.7009]
[1642593855985,0.01534744,3128.6,3128.0,0.5731]
[1642593856187,0.01534744,3128.6,3126.7,0.1278]
[1642593856188,1.3413858,3128.5,3126.9,0.79975]
[1642593856490,1.3413858,3128.5,3126.7,0.92755]
[1642593856491,0.63606059,3128.4,3126.7,0.1278]
[1642593856692,2.67333446,3128.3,3126.7,0.1278]
[1642593856892,2.67333446,3128.3,3125.7,5.61682767]
[1642593856893,0.92185,3128.2,3125.7,0.01252767]
[1642593857146,1.29967659,3126.3,3126.1,1.5999]
[1642593857342,0.462,3127.3,3126.1,1.5999]
[1642593857542,0.00170527,3126.2,3126.1,1.5999]
[1642593857748,0.00738951,3127.2,3126.1,1.88767]
[1642593857948,3.1317908,3128.5,3126.1,2.36252449]
[1642593857949,5.27e-06,3126.2,3126.1,2.36252449]
[1642593858146,0.79951,3129.2,3126.3,5.772]
[1642593858352,4.04068546,3129.3,3127.0,0.79945]
[1642593858654,0.01080532,3128.4,3127.8,0.79934]
[1642593858846,6.3936,3129.2,3128.0,6.65]
[1642593859048,6.3936,3129.2,3128.5,0.01253363]
[1642593859246,0.00397896,3129.1,3128.6,0.74967]
[1642593859443,6.3936,3129.2,3128.7,1.59824]
[1642593859444,0.00474896,3129.2,3128.7,1.59824]
[1642593859647,0.00474896,3129.2,3128.7,1.60051369]
[1642593859845,0.00474896,3129.2,3128.8,0.00170527]
[1642593860046,3.38457689,3129.1,3128.8,0.00170527]
[1642593860246,7.42549204,3129.1,3128.8,0.00170527]
[1642593860646,7.42549204,3129.1,3128.7,0.00227369]
[1642593860884,7.72549204,3129.1,3128.7,0.00227369]
[1642593861480,5.82121288,3129.1,3128.7,0.00227369]
[1642593862886,4.04091515,3129.1,3128.7,0.00227369]
[1642593863086,0.00474896,3129.2,3128.7,0.00227369]
[1642593863392,0.00474896,3129.2,3128.5,0.462]
[1642593863586,0.00474896,3129.2,3128.6,1.72619]
[1642593863785,0.00474896,3129.2,3128.6,1.72903211]
[1642593863986,0.00474896,3129.2,3128.7,0.30227369]
[1642593864191,2.5067395,3129.6,3128.9,6.7]
[1642593864390,2.5067395,3129.6,3129.0,0.5898]
[1642593864631,2.5067395,3129.6,3129.0,1.8898]
[1642593864632,0.0022737,3129.5,3129.0,1.8898]
[1642593864829,0.0022737,3129.5,3129.1,0.79906]
[1642593865030,2.5067395,3129.6,3129.2,0.1278]
[1642593865230,2.5067395,3129.6,3129.2,0.00113684]
[1642593866234,6.5466809,3129.6,3129.2,0.00113684]
[1642593866632,6.5466809,3129.6,3128.7,0.00397896]
[1642593866834,6.5466809,3129.6,3127.9,1.76713635]
[1642593866835,6.0517908,3129.6,3127.9,1.76713635]
[1642593867134,1.44615415,3129.0,3128.0,0.13575793]
[1642593867334,1.44615415,3129.0,3128.5,0.79931]
[1642593867734,1.44615415,3129.0,3128.6,0.00454738]
[1642593869176,6.0517908,3129.6,3128.6,0.00454738]
[1642593869374,6.0517908,3129.6,3128.8,0.79922]
[1642593869575,6.0517908,3129.6,3128.4,1.60420423]
[1642593869876,6.3517908,3129.6,3128.5,0.00511581]
[1642593870275,1.52252343,3128.7,3128.5,0.00511581]
[1642593870475,1.52252343,3128.7,3128.3,0.00625266]
[1642593870679,1.52252343,3128.7,3128.4,0.00568423]
[1642593870877,1.52252343,3128.7,3128.3,0.00625266]
[1642593872232,2.12252343,3128.7,3128.3,0.00625266]
[1642593872434,0.462,3128.6,3128.3,0.00625266]
[1642593872635,6.7,3128.3,3126.8,5.59268]
[1642593872834,6.7,3128.3,3126.9,0.79974]
[1642593872835,0.09657473,3128.1,3126.9,0.79974]
[1642593873034,0.462,3128.0,3126.9,0.80769792]
[1642593873436,2.34216855,3127.5,3126.9,0.00795792]
[1642593873634,1.4569602,3127.4,3126.9,0.00795792]
[1642593873937,1.4569602,3127.4,3126.3,0.01136846]
[1642593874734,0.08687144,3127.3,3126.3,0.01136846]
[1642593874933,1.9189602,3127.4,3126.6,0.79982]
[1642593875434,1.4569602,3127.4,3126.7,0.00909477]
[1642593875876,1.9189602,3127.4,3126.3,0.01136846]
[1642593876276,1.9189602,3127.4,3126.3,1.61091846]
[1642593876277,1.4569602,3127.4,3126.3,1.61091846]
[1642593876674,1.4569602,3127.4,3126.4,0.01080004]
[1642593876974,1.4569602,3127.4,3126.5,0.1279]
[1642593877177,1.4569602,3127.4,3126.4,0.93848004]
[1642593877378,1.4569602,3127.4,3126.6,0.00966319]
[1642593877579,1.4569602,3127.4,3126.8,0.79972]
[1642593877781,0.60019997,3127.8,3126.8,0.79972]
[1642593877980,0.90019997,3127.8,3126.8,0.79972]
[1642593878479,1.20019997,3127.8,3126.6,0.00966319]
[1642593878680,2.36004997,3127.8,3126.6,0.00966319]
[1642593878878,2.36004997,3127.8,3126.5,0.01023162]
[1642593879524,1.53013647,3126.6,3126.3,0.01136846]